bitfinex-derivatives/quotes_ETHF0:USTF0_20250217
["timestamp","ask_amount","ask_price","bid_price","bid_amount"]
[1739782213586,3.2078,2716.2,2714.8,13.7336649]
[1739782213787,2.941,2716.1,2715.5,3.2078]
[1739782213992,0.73645,2715.6,2715.5,3.2078]
[1739782214492,2.942,2715.6,2715.3,3.2078]
[1739782214890,0.00552344,2715.7,2715.3,3.2078]
[1739782215084,0.7365,2715.4,2715.3,3.2078]
[1739782216292,0.00552344,2715.7,2714.9,3.2078]
[1739782216484,0.00552344,2715.7,2714.8,3.2078]
[1739782216679,0.73664,2714.9,2714.8,3.2078]
[1739782216887,0.73668,2714.8,2714.6,7.76253831]
[1739782217084,2.94,2715.1,2714.5,3.2078]
[1739782217385,3.2078,2715.1,2714.5,3.2078]
[1739782217585,0.73664,2714.9,2714.8,3.2078]
[1739782217994,6.0,2714.9,2714.2,3.2078]
[1739782218295,0.73675,2714.5,2714.2,3.2078]
[1739782219189,9.67975,2714.5,2713.7,3.2078]
[1739782219385,12.1508,2714.5,2713.7,3.2078]
[1739782219585,2.943,2714.5,2713.7,3.2078]
[1739782219789,0.73683,2714.2,2714.1,3.2078]
[1739782220207,1.84168,2714.8,2713.4,0.44259059]
[1739782220208,3.2078,2714.7,2713.8,3.2078]
[1739782220393,2.954,2714.6,2713.8,3.2078]
[1739782220594,0.00552344,2714.4,2714.1,3.2078]
[1739782220790,2.953,2714.3,2714.1,3.2078]
[1739782221192,0.73688,2714.0,2713.9,0.00552344]
[1739782221494,0.73684,2714.2,2713.9,0.44811403]
[1739782221696,0.73684,2714.2,2714.1,3.2078]
[1739782221996,0.00552344,2714.4,2714.1,3.2078]
[1739782222195,0.74231344,2714.4,2714.1,3.65039059]
[1739782222395,0.74230344,2714.4,2714.1,3.65039059]
[1739782222801,0.73683,2714.2,2714.1,3.2078]
[1739782223191,0.00552344,2714.4,2714.1,3.2078]
[1739782223694,0.00552344,2714.4,2714.1,3.65942462]
[1739782224200,0.00552344,2714.4,2714.2,8.35270991]
[1739782224494,0.73661,2715.0,2714.2,9.08951991]
[1739782224698,0.73661,2715.0,2714.9,3.2078]
[1739782225497,0.73054734,2715.0,2714.9,3.65942462]
[1739782225697,6.73054734,2715.0,2714.9,0.45162462]
[1739782225898,9.93834734,2715.0,2714.9,0.45162462]
[1739782226100,9.93834734,2715.0,2714.4,3.2078]
[1739782226290,0.73688,2714.0,2713.9,0.00552344]
[1739782226502,2.956,2714.0,2713.9,0.00552344]
[1739782226687,0.73688,2714.0,2713.9,3.21332344]
[1739782228302,0.73688,2714.0,2713.9,0.00552344]
[1739782228998,6.73688,2714.0,2713.9,0.00552344]
[1739782229201,6.73688,2714.0,2713.7,2.34805]
[1739782229202,6.0,2714.0,2712.7,3.2078]
[1739782229505,5.60032,2713.9,2712.8,3.2078]
[1739782229709,2.96,2713.8,2712.8,3.2078]
[1739782230201,2.96,2713.8,2713.2,3.2078]
[1739782230396,0.73713,2713.1,2713.0,0.00552344]
[1739782230749,3.69513,2713.1,2713.0,0.00552344]
[1739782231200,9.69513,2713.1,2713.0,0.00552344]
[1739782231395,9.69513,2713.1,2713.0,3.44e-06]
[1739782231997,0.73737,2712.2,2712.1,3.2078]
[1739782232205,3.69637,2712.2,2712.1,3.2078]
[1739782232401,54.81026,2712.2,2710.7,3.2078]
[1739782232611,4.36762781,2711.8,2710.7,3.2078]
[1739782232799,2.971,2711.7,2711.0,3.2078]
[1739782232999,2.971,2711.7,2710.8,7.89979806]
[1739782233200,2.971,2711.7,2711.1,0.00552344]
[1739782233201,0.00552344,2711.6,2711.1,0.00552344]
[1739782233597,0.73764,2711.2,2711.1,0.00552344]
[1739782233918,0.00552344,2711.6,2711.1,0.00552344]
[1739782234202,2.983,2711.5,2711.1,0.00552344]
[1739782234805,2.99052344,2711.6,2711.2,3.2078]
[1739782235001,0.74307344,2711.6,2711.2,3.2078]
[1739782235202,0.00552344,2711.6,2711.2,3.2078]
[1739782235407,0.00552344,2711.6,2711.3,7.86925114]
[1739782235603,0.00552344,2711.6,2711.2,3.2078]
[1739782236108,3.72606344,2711.6,2711.1,3.21332344]
[1739782236307,2.98852344,2711.6,2711.1,3.21332344]
[1739782236808,0.00552344,2711.6,2711.4,3.2078]
[1739782237207,0.00552344,2711.6,2711.5,7.53265165]
[1739782237405,6.1908,2712.2,2711.5,18.63781946]
[1739782237610,6.1908,2712.2,2711.5,7.53265165]
[1739782237902,3.2078,2712.2,2711.5,8.27019165]
[1739782238306,3.2078,2712.2,2711.5,7.53265165]
[1739782238505,2.984,2712.4,2711.7,3.2078]
[1739782238706,0.73748,2711.8,2711.7,3.2078]
[1739782239510,0.73748,2711.8,2711.7,3.6567208]
[1739782239912,0.00552344,2712.1,2711.7,3.6567208]
[1739782240813,0.73744,2712.0,2711.8,0.4489208]
[1739782241116,2.98352344,2712.1,2711.8,0.4489208]
[1739782241409,0.00552344,2712.1,2712.0,3.2078]
[1739782241610,0.74292344,2712.1,2712.0,3.2078]
[1739782241813,0.00552344,2712.1,2712.0,3.20410609]
[1739782243209,0.00552344,2712.1,2712.0,3.65302689]
[1739782247113,0.74292344,2712.1,2712.0,3.65302689]
[1739782247311,0.00552344,2712.1,2712.0,3.65302689]
[1739782248716,0.74292344,2712.1,2712.0,3.65302689]
[1739782249012,0.00552344,2712.1,2712.0,3.65302689]
[1739782249718,0.00552344,2712.1,2712.0,0.4489208]
[1739782252420,0.00552344,2712.1,2712.0,3.6567208]
[1739782253020,0.00552344,2712.1,2712.0,4.3941408]
[1739782253317,5.05057,2713.2,2712.6,0.73725]
[1739782253318,3.2078,2713.2,2712.6,0.73725]
[1739782253519,0.73716,2713.0,2712.7,3.2078]
[1739782253723,2.937,2713.1,2712.7,3.6567208]
[1739782254420,3.67414,2713.1,2712.7,3.6567208]
[1739782254617,3.21332344,2713.2,2712.7,3.6567208]
[1739782254618,0.00552344,2713.2,2712.8,0.4489208]
[1739782255325,0.74264344,2713.2,2712.9,0.4489208]
[1739782255524,0.00552344,2713.2,2712.9,0.4489208]
[1739782256420,0.00552344,2713.2,2713.0,3.6567208]
[1739782256621,0.00552344,2713.2,2713.1,0.73713]
[1739782256920,0.00552344,2713.2,2713.1,0.5837]
[1739782257526,0.00552344,2713.2,2713.1,1.0326208]
[1739782258219,0.00552344,2713.2,2713.1,1.7697508]
[1739782258624,0.00552344,2713.2,2713.1,1.0326208]
[1739782259624,0.74262344,2713.2,2713.1,0.4489208]
[1739782259922,3.67662344,2713.2,2713.1,0.4489208]
[1739782260122,0.00552344,2713.2,2713.1,1.1860508]
[1739782260314,0.00552344,2713.2,2713.1,0.4489208]
[1739782261126,0.00552344,2713.2,2713.1,1.1860508]
[1739782261433,0.00552344,2713.2,2713.1,0.9817208]
[1739782262131,0.00552344,2713.2,2713.1,1.7188508]
[1739782262332,0.00552344,2713.2,2713.1,0.9817208]
[1739782262630,0.00552344,2713.2,2713.1,0.4489208]
[1739782262631,0.74262344,2713.2,2713.1,0.4489208]
[1739782262825,0.00552344,2713.2,2713.1,0.4489208]
[1739782263826,9.95042344,2713.2,2713.1,0.44339736]
[1739782264030,0.73723,2712.7,2712.6,0.00552344]
[1739782264228,3.66623,2712.7,2712.6,0.00552344]
[1739782264429,13.29662781,2712.7,2711.6,3.2078]
[1739782264732,0.73745,2712.0,2711.6,3.2078]
[1739782264927,0.73746,2711.9,2711.6,3.2078]
[1739782265334,0.73751,2711.7,2711.6,3.2078]
[1739782265832,0.73753,2711.6,2711.5,0.00552344]
[1739782266037,3.94533,2711.6,2711.5,0.00552344]
[1739782266230,3.94533,2711.6,2710.9,3.2078]
[1739782266231,0.73768,2711.1,2710.9,3.2078]
[1739782266431,2.929,2711.0,2710.9,3.2078]
[1739782269538,3.6667,2711.0,2710.9,3.2078]
[1739782269733,2.929,2711.0,2710.7,0.00552344]
[1739782269947,0.73775,2710.8,2710.7,0.00552344]
[1739782270438,6.73775,2710.8,2710.7,0.00552344]
[1739782270643,6.1368,2711.0,2710.7,0.00552344]
[1739782271134,2.916,2710.9,2710.7,0.00552344]
[1739782271340,3.94538,2711.5,2710.8,3.2078]
[1739782271640,2.913,2711.4,2710.8,3.2078]
[1739782272437,3.2078,2711.5,2710.8,3.2078]
[1739782272632,0.5624,2711.6,2710.9,3.2078]
[1739782272832,2.911,2711.4,2710.9,3.2078]
[1739782273039,2.911,2711.4,2710.7,0.00552344]
[1739782273238,0.73775,2710.8,2710.7,0.00552344]
[1739782273444,3.64975,2710.8,2710.7,0.00552344]
[1739782273943,9.64975,2710.8,2710.7,0.00552344]
[1739782274443,9.64975,2710.8,2710.2,3.2078]
[1739782274444,8.912,2710.8,2710.2,3.2078]
[1739782274635,0.5867,2710.7,2710.2,3.2078]
[1739782274838,0.95630001,2710.7,2710.2,3.2078]
[1739782275137,0.73786,2710.4,2710.2,3.2078]
[1739782275334,2.908,2710.3,2710.2,3.2078]
[1739782275533,2.907,2710.3,2710.2,3.2078]
[1739782277136,3.2078,2710.9,2710.2,3.9457]
[1739782277442,0.73778,2710.7,2710.2,3.2078]
[1739782277642,0.73782,2710.6,2710.2,3.2078]
[1739782277842,0.73788,2710.4,2710.2,3.2078]
[1739782278245,2.908,2710.3,2710.2,3.2078]
[1739782278637,3.64589,2710.3,2710.2,3.2078]
[1739782278941,2.908,2710.3,2710.2,3.2078]
[1739782279649,3.64589,2710.3,2710.2,3.2078]
[1739782280238,8.908,2710.3,2710.0,0.00553403]
[1739782280545,0.73794,2710.1,2710.0,0.00553403]
[1739782280741,2.908,2710.3,2710.0,0.00553403]
[1739782281154,40.8,2710.2,2710.0,0.00553403]
[1739782281340,2.908,2710.3,2710.0,0.00553403]
[1739782281851,2.90253403,2710.4,2710.0,3.21333403]
[1739782282144,0.73794,2710.1,2710.0,0.00553403]
[1739782282338,3.2078,2710.1,2709.3,3.2078]
[1739782282940,0.73813,2709.4,2709.3,3.2078]
[1739782283253,2.907,2709.5,2709.3,3.2078]
[1739782283453,2.907,2709.5,2709.1,0.00374509]
[1739782283856,0.73819,2709.2,2709.1,0.00374509]
[1739782284852,2.907,2709.5,2709.1,0.00374509]
[1739782285053,0.36960001,2709.6,2709.1,0.00374509]
[1739782285250,2.899,2709.5,2709.1,0.00374509]
[1739782285445,2.899,2709.4,2709.3,3.2078]
[1739782285647,3.57740001,2710.0,2709.3,3.2078]
[1739782285873,0.73804,2709.8,2709.3,3.2078]
[1739782286154,0.73806,2709.7,2709.3,3.2078]
[1739782286346,0.73808,2709.6,2709.3,3.2078]
[1739782286551,3.63602,2709.9,2709.3,3.2078]
[1739782286756,2.898,2709.9,2709.3,3.2078]
[1739782287147,0.73807,2709.7,2709.3,3.2078]
[1739782287351,3.63601,2709.9,2709.3,3.2078]
[1739782287553,2.898,2709.9,2709.3,3.2078]
[1739782287755,2.889,2709.8,2709.3,3.2078]
[1739782287954,2.889,2709.8,2709.5,0.73808]
[1739782288258,2.889,2709.8,2709.7,3.2078]
[1739782288452,6.0968,2709.8,2709.1,0.00374509]
[1739782288758,3.64707,2709.7,2709.1,3.21154509]
[1739782289054,2.909,2709.7,2709.1,3.21154509]
[1739782289251,2.909,2709.7,2709.1,0.00374509]
[1739782289551,2.909,2709.7,2709.4,3.2078]
[1739782290352,2.904,2709.6,2709.4,3.2078]
[1739782290859,2.902,2709.8,2709.4,3.2078]
[1739782291054,0.73812,2709.5,2709.1,0.00374509]
[1739782291655,40.8,2709.5,2709.3,3.2078]
[1739782292053,3.64004,2709.8,2709.3,3.2078]
[1739782292251,2.902,2709.8,2709.3,3.2078]
[1739782292464,40.8,2709.7,2709.3,3.2078]
[1739782292761,41.53805,2709.7,2709.3,3.2078]
[1739782292961,2.897,2709.6,2709.3,3.2078]
[1739782293352,2.9,2709.9,2709.3,3.7936]
[1739782293556,0.00553403,2710.4,2709.8,3.2078]
[1739782293855,2.899,2710.2,2709.8,3.2078]
[1739782294253,0.738,2709.9,2709.8,3.2078]
[1739782295950,0.73811,2709.5,2709.4,3.2078]
[1739782296151,3.63111,2709.5,2709.4,3.2078]
[1739782296357,44.43111,2709.5,2709.1,3.21154509]
[1739782296760,0.73814,2709.4,2709.1,3.21154509]
[1739782297263,43.693,2709.5,2709.1,3.20548243]
[1739782297453,43.693,2709.5,2709.4,3.2078]
[1739782297860,43.693,2709.5,2709.4,3.6569326]
[1739782298163,44.43111,2709.5,2709.4,3.6569326]
[1739782299367,43.693,2709.5,2709.4,3.6569326]
[1739782300160,44.43111,2709.5,2709.4,3.6569326]
[1739782301060,43.693,2709.5,2709.4,3.6569326]
[1739782301258,44.43111,2709.5,2709.4,3.6569326]
[1739782301664,43.693,2709.5,2709.4,3.6569326]
[1739782302868,44.43111,2709.5,2709.4,3.6569326]
[1739782303167,43.693,2709.5,2709.4,3.6569326]
[1739782304071,2.855,2709.5,2709.4,3.6569326]
[1739782304267,0.73803,2709.8,2709.4,3.6569326]
[1739782304463,2.853,2709.7,2709.4,3.6569326]
[1739782304769,41.53809,2709.6,2709.5,0.4491326]
[1739782305569,40.8,2709.6,2709.5,0.4491326]
[1739782305770,40.8,2709.6,2709.5,1.1872426]
[1739782306064,2.845,2709.8,2709.6,0.73807]
[1739782306269,2.845,2709.8,2709.5,0.4491326]
[1739782306473,0.73808,2709.6,2709.4,3.2078]
[1739782306772,0.73811,2709.5,2709.4,3.2078]
[1739782307169,40.8,2709.7,2709.4,3.2078]
[1739782307473,4.76576142,2709.5,2709.4,0.4502883]
[1739782307668,4.02765142,2709.5,2709.4,0.45067985]
[1739782307973,4.76576142,2709.5,2709.4,0.45067985]
[1739782308165,5.33456142,2709.5,2709.4,0.45067985]
[1739782308671,11.33456142,2709.5,2709.4,0.45067985]
[1739782309068,5.33456142,2709.5,2709.4,0.45067985]
[1739782309268,4.59645142,2709.5,2709.0,3.2078]
[1739782309459,0.73818,2709.3,2709.0,3.2078]
[1739782309662,3.57619,2709.2,2709.0,3.2078]
[1739782309864,2.838,2709.2,2709.0,3.2078]
[1739782310064,2.838,2709.2,2709.1,0.45118482]
[1739782311473,2.829,2709.2,2709.1,0.45118482]
[1739782311669,2.829,2709.4,2709.2,0.73817]
[1739782311874,2.829,2709.4,2709.3,3.2078]
[1739782312080,2.829,2709.4,2709.3,3.65898482]
[1739782312268,40.8,2709.7,2709.4,0.73813]
[1739782312470,2.828,2709.5,2709.4,0.73813]
[1739782312669,2.828,2709.5,2709.3,3.65898482]
[1739782312868,2.828,2709.5,2709.4,0.45118482]
[1739782313074,2.828,2709.5,2709.4,1.18931482]
[1739782313874,2.828,2709.5,2709.4,0.45118482]
[1739782314075,2.828,2709.5,2709.4,1.18931482]
[1739782314470,40.8,2709.7,2709.4,0.45118482]
[1739782314674,43.623,2709.7,2709.6,3.2078]
[1739782315069,47.65065142,2709.7,2709.5,0.45118482]
[1739782315881,47.65065142,2709.7,2709.6,0.45118482]
[1739782316069,43.623,2709.7,2709.6,3.65898482]
[1739782316879,44.36105,2709.7,2709.6,0.45118482]
[1739782317381,48.38870142,2709.7,2709.6,0.45118482]
[1739782317574,47.65065142,2709.7,2709.6,0.45118482]
[1739782318881,48.38870142,2709.7,2709.6,0.45118482]
[1739782320573,57.59650142,2709.7,2709.6,0.45118482]
[1739782321283,56.85845142,2709.7,2709.2,3.2078]
[1739782321584,4.76581142,2709.3,2709.2,3.2078]
[1739782321784,4.02765142,2709.3,2708.9,3.2078]
[1739782321989,0.73832,2708.7,2708.6,3.2078]
[1739782322183,0.73832,2708.7,2708.3,3.2078]
[1739782322184,0.73839,2708.5,2708.3,3.2078]
[1739782322380,4.76606142,2708.4,2708.3,3.2078]
[1739782322592,0.73846,2708.2,2708.0,3.2078]
[1739782322795,7.56514142,2708.1,2708.0,3.2078]
[1739782323384,6.82665142,2708.1,2707.6,3.2078]
[1739782323894,4.02765142,2707.8,2707.6,3.2078]
[1739782325190,2.799,2708.1,2707.6,3.2078]
[1739782325394,2.799,2708.1,2707.9,3.2078]
[1739782325593,2.799,2708.1,2707.7,0.99089637]
[1739782325594,6.82665142,2708.1,2707.7,0.99089637]
[1739782325794,40.8,2708.0,2707.7,0.99089637]
[1739782326396,41.53853,2708.0,2707.6,3.2078]
[1739782326698,40.8,2708.0,2707.6,3.2078]
[1739782327101,4.02765142,2708.4,2707.9,3.2078]
[1739782327291,2.801,2708.1,2707.9,3.94634]
[1739782327489,2.801,2708.3,2708.2,3.94626]
[1739782327690,2.802,2708.6,2708.2,3.2078]
[1739782327895,2.802,2708.6,2708.5,3.94618]
[1739782328395,0.00553403,2708.9,2708.7,0.73832]
[1739782328598,0.00553403,2708.9,2708.8,3.2078]
[1739782328794,0.00553403,2708.9,2708.8,3.65512143]
[1739782329188,0.00553403,2708.9,2708.8,4.39342143]
[1739782329986,40.8,2709.4,2708.8,3.65512143]
[1739782330292,40.8,2709.4,2709.3,3.2078]
[1739782330796,2.8,2709.8,2709.3,3.65512143]
[1739782331187,0.73813,2709.4,2709.3,3.66065546]
[1739782331590,0.7381,2709.6,2709.3,3.66065546]
[1739782331791,0.73811,2709.5,2709.3,3.66065546]
[1739782331993,0.73813,2709.4,2709.3,3.21333403]
[1739782332192,4.76578142,2709.4,2709.3,0.00553403]
[1739782332391,7.56178142,2709.4,2709.3,0.00553403]
[1739782333299,16.03145142,2709.4,2708.2,3.2078]
[1739782333497,0.73833,2708.7,2708.2,3.2078]
[1739782333702,2.797,2708.9,2708.2,3.2078]
[1739782333906,2.797,2708.9,2708.5,3.2078]
[1739782334097,2.797,2708.9,2708.3,0.44725999]
[1739782334496,0.73838,2708.5,2708.2,3.2078]
[1739782334999,4.02765142,2708.7,2708.2,3.2078]
[1739782335305,40.8,2708.6,2708.2,3.2078]
[1739782335599,40.8,2708.6,2708.5,3.2078]
[1739782336405,40.8,2708.6,2708.5,3.65515129]
[1739782336904,2.794,2708.9,2708.6,0.73834]
[1739782337107,2.792,2709.2,2708.8,3.2078]
[1739782337295,40.8,2709.1,2708.8,3.2078]
[1739782337904,4.61455142,2709.7,2708.8,3.2078]
[1739782338105,4.61455142,2709.7,2708.6,1.1376]
[1739782338106,3.95136403,2709.8,2709.1,3.2078]
[1739782338301,2.79,2709.7,2709.1,3.2078]
[1739782338599,40.8,2709.6,2709.2,0.44708202]
[1739782339002,40.8,2709.6,2709.1,3.2078]
[1739782339400,0.73811,2709.5,2709.1,3.2078]
[1739782339600,40.8,2709.6,2709.1,3.2078]
[1739782339803,0.73815,2709.4,2709.1,3.2078]
[1739782340003,0.73813,2709.4,2709.1,3.2078]
[1739782340203,4.02765142,2709.4,2708.7,3.2078]
[1739782340400,0.73829,2708.9,2708.7,3.2078]
[1739782340608,0.73821,2709.1,2708.7,3.2078]
[1739782341129,2.79,2709.2,2708.7,3.2078]
[1739782341405,2.79,2709.2,2709.0,3.2078]
[1739782342412,2.787,2709.5,2709.0,3.2078]
[1739782342904,43.586,2709.6,2709.3,3.2078]
[1739782343907,0.73813,2709.4,2709.3,3.2078]
[1739782344714,4.02765142,2709.4,2708.8,3.65498997]
[1739782345010,0.7382,2709.2,2708.8,3.65498997]
[1739782345205,0.7382,2709.2,2708.8,3.2078]
[1739782345449,0.73824,2709.0,2708.8,3.2078]
[1739782345606,0.73825,2709.0,2708.8,3.2078]
[1739782345807,0.73824,2709.1,2708.8,3.2078]
[1739782346207,0.73825,2709.0,2708.8,3.2078]
[1739782346409,0.73827,2708.9,2708.8,3.2078]
[1739782346614,0.73826,2709.0,2708.8,3.2078]
[1739782346815,0.73827,2708.9,2708.8,3.2078]
[1739782349606,41.53827,2708.9,2708.8,3.2078]
[1739782350807,0.73841,2708.4,2708.3,3.65556163]
[1739782351308,0.73841,2708.4,2708.3,3.2078]
[1739782353008,4.76606142,2708.4,2708.3,3.2078]
[1739782353211,5.30876142,2708.4,2708.3,3.2078]
[1739782354413,2.77,2708.5,2708.3,3.2078]
[1739782354618,3.50839,2708.5,2708.3,3.2078]
[1739782354817,4.02765142,2708.7,2708.3,3.2078]
[1739782355040,2.762,2708.6,2708.3,3.2078]
[1739782355321,0.73841,2708.4,2708.3,3.2078]
[1739782355620,0.73849,2708.2,2708.0,3.2078]
[1739782355821,3.50049,2708.2,2708.0,3.2078]
[1739782356014,4.02765142,2708.1,2707.7,3.2078]
[1739782356513,4.76616142,2708.1,2707.7,3.2078]
[1739782357011,0.7385,2708.1,2707.8,0.44832442]
[1739782357615,3.50046,2708.2,2707.7,3.2078]
[1739782357807,0.73855,2707.9,2707.7,3.2078]
[1739782358210,0.73856,2707.9,2707.7,3.2078]
[1739782358413,0.7385,2708.1,2707.7,3.2078]
[1739782358920,3.50047,2708.2,2707.7,3.2078]
[1739782359113,2.762,2708.2,2707.7,3.2078]
[1739782359617,0.7385,2708.1,2707.7,3.2078]
[1739782360021,0.73853,2708.0,2707.7,3.2078]
[1739782360413,2.762,2708.2,2707.7,3.2078]
[1739782360612,0.73849,2708.1,2707.7,3.2078]
[1739782360818,2.762,2708.2,2707.7,3.2078]
[1739782361017,0.73851,2708.1,2707.7,3.2078]
[1739782361218,0.7385,2708.1,2707.7,3.2078]
[1739782361523,3.50048,2708.2,2707.7,3.2078]
[1739782361725,2.762,2708.2,2707.7,3.2078]
[1739782362021,0.5824,2708.3,2708.0,3.2078]
[1739782362217,2.742,2708.2,2708.0,3.2078]
[1739782362419,0.73849,2708.1,2708.0,3.2078]
[1739782362625,4.76614142,2708.1,2708.0,3.2078]
[1739782364617,5.32494142,2708.1,2708.0,3.2078]
[1739782364823,46.12494142,2708.1,2708.0,3.2078]
[1739782365717,0.73857,2707.8,2707.7,3.2078]
[1739782365922,3.46957,2707.8,2707.7,3.2078]
[1739782366416,7.49722142,2707.8,2707.7,3.2078]
[1739782366622,47.55865142,2707.8,2707.7,3.2078]
[1739782366845,43.531,2707.8,2707.7,3.2078]
[1739782367120,44.26957,2707.8,2707.7,3.2078]
[1739782367525,48.29722142,2707.8,2707.7,3.2078]
[1739782369014,43.531,2707.8,2707.7,3.2078]
[1739782369326,44.26957,2707.8,2707.7,3.2078]
[1739782369628,2.731,2707.8,2707.7,3.2078]
[1739782370119,41.53852,2708.0,2707.7,3.2078]
[1739782370320,2.725,2707.9,2707.7,3.2078]
[1739782370519,2.724,2707.9,2707.7,3.2078]
[1739782371419,40.8,2708.0,2707.7,3.2078]
[1739782371728,0.00553403,2708.4,2707.7,3.2078]
[1739782371918,0.00553403,2708.4,2707.9,3.2078]
[1739782372219,40.8,2708.3,2707.9,3.2078]
[1739782372426,43.523,2708.3,2708.0,1.55205019]
[1739782372620,44.26144,2708.3,2708.0,1.55205019]
[1739782372820,44.26145,2708.3,2708.0,1.55205019]
[1739782373028,44.26145,2708.3,2708.0,1.1039]
[1739782373623,43.523,2708.3,2708.0,1.1039]
[1739782373926,43.523,2708.3,2708.2,3.2078]
[1739782374327,2.723,2708.3,2708.2,3.2078]
[1739782374526,2.723,2708.3,2708.2,3.65621544]
[1739782376131,0.74394403,2708.4,2708.2,3.65621544]
[1739782376430,0.00553403,2708.4,2708.3,0.44841544]
[1739782376834,0.00553403,2708.4,2708.2,3.2078]
[1739782377332,0.74394403,2708.4,2708.2,3.2078]
[1739782377929,0.00553403,2708.4,2708.2,3.2078]
[1739782378932,0.00553403,2708.4,2708.3,0.44942237]
[1739782380536,0.74394403,2708.4,2708.3,0.44942237]
[1739782382132,0.00553403,2708.4,2708.3,0.44942237]
[1739782382852,0.74394403,2708.4,2708.3,0.44942237]
[1739782383034,0.00553403,2708.4,2708.3,0.44942237]
[1739782386836,0.74394403,2708.4,2708.3,0.44942237]
[1739782387428,0.00553403,2708.4,2708.3,0.44942237]
[1739782389429,0.74394403,2708.4,2708.3,0.44942237]
[1739782390924,0.00553403,2708.4,2708.3,0.44942237]
[1739782391725,0.74394403,2708.4,2708.3,0.44942237]
[1739782391932,0.00553403,2708.4,2708.3,0.44942237]
[1739782392336,0.00553403,2708.4,2708.3,1.18785237]
[1739782392537,0.00284504,2708.4,2708.3,1.18785237]
[1739782393534,0.00284504,2708.4,2708.3,0.44942237]
[1739782395240,0.00284504,2708.4,2708.3,1.18785237]
[1739782395437,0.00284504,2708.4,2708.3,0.44942237]
[1739782396833,0.00284504,2708.4,2708.3,1.18785237]
[1739782397033,0.00284504,2708.4,2708.3,0.44942237]
[1739782397938,0.74125504,2708.4,2708.3,0.44942237]
[1739782398137,0.00284504,2708.4,2708.3,0.44942237]
[1739782398855,0.00284504,2708.4,2708.3,1.18785237]
[1739782399838,0.00284504,2708.4,2708.3,1.75355237]
[1739782400435,43.448,2708.9,2708.3,1.75355237]
[1739782400436,40.8,2708.9,2708.3,1.75355237]
[1739782400635,41.53828,2708.9,2708.8,3.2078]
[1739782400937,0.73828,2708.9,2708.8,3.2078]
[1739782401238,2.649,2709.1,2708.8,3.2078]
[1739782401441,0.73827,2708.9,2708.8,3.2078]
[1739782402242,40.8,2709.0,2708.8,3.2078]
[1739782402540,40.8,2709.0,2708.9,0.73827]
[1739782402744,0.73822,2709.1,2708.9,0.73827]
[1739782403043,3.38572403,2709.2,2708.9,1.18906237]
[1739782403239,40.8,2709.1,2708.9,1.18906237]
[1739782403439,40.8,2709.1,2709.0,3.65859237]
[1739782403641,41.53821,2709.1,2709.0,3.65859237]
[1739782404440,40.8,2709.1,2709.0,3.65859237]
[1739782404634,40.8,2709.1,2709.0,4.39683237]
[1739782404834,40.8,2709.1,2709.0,3.65859237]
[1739782405036,3.38573403,2709.2,2709.0,3.65859237]
[1739782405338,0.73821,2709.1,2709.0,0.45079237]
[1739782405644,0.73821,2709.1,2708.7,3.2078]
[1739782405645,0.7383,2708.8,2708.7,3.2078]
[1739782405941,2.64753403,2709.2,2708.7,3.65822292]
[1739782406341,40.8,2709.1,2709.0,3.2078]
[1739782406541,41.53821,2709.1,2709.0,3.2078]
[1739782406747,44.17721,2709.1,2709.0,3.2078]
[1739782409743,43.439,2709.1,2709.0,3.2078]
[1739782410763,2.639,2709.1,2709.0,3.2078]
[1739782411550,0.00553403,2709.2,2709.0,3.94604]
[1739782411852,0.00553403,2709.2,2709.1,0.73821]
[1739782412149,40.8,2709.7,2709.4,0.73812]
[1739782412344,40.8,2709.7,2709.5,3.2078]
[1739782412539,0.73808,2709.6,2709.5,3.2078]
[1739782413442,40.8,2709.7,2709.5,3.2078]
[1739782413845,41.53807,2709.7,2709.5,3.2078]
[1739782414059,3.36957403,2709.8,2709.5,3.2078]
[1739782414348,0.00553403,2709.8,2709.5,3.2078]
[1739782414554,0.00553403,2709.8,2709.5,3.94591]
[1739782414849,0.00553403,2709.8,2709.5,3.2078]
[1739782415047,2.623,2710.0,2709.5,3.94589]
[1739782415249,3.14888,2711.2,2709.5,3.94589]
[1739782415443,24.439,2715.1,2709.1,6.21280933]
[1739782415444,2.0,2715.0,2713.5,3.2078]
[1739782415646,3.2078,2716.2,2714.8,3.21719933]
[1739782415950,3.2078,2716.2,2715.0,3.2078]
[1739782415951,22.74525284,2715.7,2715.0,3.2078]
[1739782416145,29.47405284,2715.7,2714.7,3.2078]
[1739782416348,0.00553403,2715.6,2715.1,0.00553403]
[1739782416653,40.8,2715.2,2714.2,0.57567494]
[1739782416851,3.2078,2714.8,2714.1,3.2078]
[1739782417042,3.2078,2714.2,2713.7,3.2078]
[1739782417246,3.2078,2713.9,2713.4,0.5562085]
[1739782417548,7.5571172,2714.1,2712.5,0.92106112]
[1739782417549,3.2078,2713.6,2712.7,0.57601884]
[1739782417848,3.2078,2713.1,2711.8,1.49825408]
[1739782418047,6.7798,2713.1,2712.4,3.2078]
[1739782418243,6.7798,2713.1,2712.2,0.00553403]
[1739782418244,3.2078,2712.8,2712.2,0.00553403]
[1739782418443,3.2078,2713.1,2712.5,1.13719833]
[1739782418646,3.2078,2712.9,2712.5,0.03719833]
[1739782418847,3.2078,2713.2,2712.5,0.03719833]
[1739782419044,40.8,2713.5,2713.3,0.73707]
[1739782419356,40.8,2713.5,2713.2,0.73707]
[1739782419550,40.8,2713.5,2712.5,3.2078]
[1739782419757,40.8,2713.5,2713.4,0.73704]
[1739782420855,3.21333403,2713.9,2713.2,3.2078]
[1739782421057,3.21333403,2713.9,2713.3,0.73707]
[1739782421252,40.8,2713.8,2713.7,0.73696]
[1739782421751,40.8,2713.8,2712.9,11.04431826]
[1739782421752,0.00553403,2713.9,2713.8,0.73694]